fUSD/lending_fUSD_20260217
["ID","MTS","AMOUNT","RATE_DAILY","PERIOD"]
[405792731,1771313443719,-250.0,0.00017808,20]
[405792732,1771313443733,-250.0,0.00017808,20]
[405792733,1771313443743,-250.0,0.00017808,20]
[405792734,1771313443753,-250.0,0.00017808,20]
[405792735,1771313443763,-250.0,0.00017808,20]
[405792736,1771313443773,-250.0,0.00017808,20]
[405792737,1771313443783,-250.0,0.00017808,20]
[405792738,1771313443793,-250.0,0.00017808,20]
[405792739,1771313443803,-250.0,0.00017808,20]
[405792740,1771313443813,-250.0,0.00017808,20]
[405792741,1771313443823,-250.0,0.00017808,20]
[405792742,1771313443832,-250.0,0.00017808,20]
[405792743,1771313443842,-211.316222,0.00017808,20]
[405792744,1771313443852,-217.15233878,0.00017823,2]
[405792745,1771313443862,-200.0,0.00017823,2]
[405792746,1771313443872,-151.0,0.00017825,2]
[405792747,1771313443882,-997.16350561,0.00017825,2]
[405792748,1771313443892,-500.0,0.00017835,2]
[405792749,1771313443901,-200.0,0.00017856,2]
[405792750,1771313443911,-1004.12697823,0.0001786,2]
[405792751,1771313443921,-151.0,0.0001788,2]
[405792752,1771313443931,-500.0,0.0001789,2]
[405792753,1771313443942,-2555.4951848,0.000179,5]
[405792754,1771313443951,-165.14,0.000179,2]
[405792755,1771313443961,-5300.13656815,0.000179,2]
[405792756,1771313443972,-2438.53306734,0.000179,2]
[405792757,1771313443982,-2345.85584194,0.000179,2]
[405792758,1771313443992,-1488.83065607,0.0001791,2]
[405792759,1771313444002,-151.0,0.00017935,2]
[405792760,1771313444012,-500.0,0.00017945,2]
[405792761,1771313444023,-151.0,0.0001799,2]
[405792762,1771313444034,-225.73403839,0.00017997,2]
[405792763,1771313444044,-23598.10797836,0.00017999,2]
[405792764,1771313444054,-500.0,0.00018,2]
[405792765,1771313444064,-150.0,0.00018,2]
[405792766,1771313444075,-1075.70019208,0.00018,2]
[405792767,1771313444085,-150.0,0.00018,2]
[405792768,1771313444094,-3080.85541333,0.00018,2]
[405792769,1771313444104,-772.26,0.00018,7]
[405792770,1771313444114,-1132410.54683693,0.00018,2]
[405792771,1771313444163,-352.2251544,0.00018,2]
[405792772,1771313444174,-4103.70418251,0.00018,2]
[405792773,1771313444227,-500.0,0.00010195,2]
[405792774,1771313444236,-2205.66581801,0.00018,2]
[405792775,1771313444255,-500.0,0.00010195,2]
[405792776,1771313444265,-7797.55911734,0.00018,2]
[405792777,1771313444277,-9972.23340186,0.00018,2]
[405792778,1771313444609,-500.0,0.00010195,2]
[405792779,1771313444620,-765291.15357028,0.00018,2]
[405792780,1771313444633,-418.54789703,0.00018,2]
[405792781,1771313444649,-81799.71346503,0.00018,2]
[405792782,1771313445355,-500.0,0.00013698,2]
[405792783,1771313445366,-183.74,0.00013699,2]
[405792784,1771313445377,-1067.44784643,0.00018,2]
[405792794,1771313446120,-441.47371462,0.00013698,2]
[405792801,1771313733036,200.0,0.00010048,4]
[405792804,1771314070100,279.41359904,9.8e-05,3]
[405792805,1771314070177,337.64971861,9.8e-05,3]
[405792806,1771314070214,376.47379833,9.8e-05,3]
[405792807,1771314070258,357.06175847,9.8e-05,3]
[405792808,1771314250949,157.32039468,9.6e-05,3]
[405792809,1771314251482,157.32039468,9.6e-05,3]
[405792810,1771314251553,162.81069069,9.6e-05,3]
[405792842,1771314632202,-200.0,8.73e-05,2]
[405792843,1771314632213,-223.0,8.743e-05,2]
[405792844,1771314632224,-500.0,8.743e-05,2]
[405792845,1771314632235,-327.407725,9.472e-05,2]
[405792846,1771314632245,-241.0,9.52e-05,2]
[405792847,1771314632257,-102.25197379,9.52e-05,2]
[405792848,1771314632269,-1097.74802621,9.52e-05,2]
[405792849,1771314632279,-150.0,9.521e-05,2]
[405792850,1771314632292,-500.0,9.521e-05,2]
[405792851,1771314632304,-500.0,9.521e-05,2]
[405792852,1771314632314,-500.0,9.521e-05,2]
[405792853,1771314632325,-188.12066255,9.521e-05,2]
[405792854,1771314632352,-279.79428379,9.521e-05,2]
[405792855,1771314632374,-32.08505366,9.521e-05,2]
[405792856,1771314632385,-150.0,9.521e-05,2]
[405792857,1771314632395,-150.0,9.521e-05,2]
[405792858,1771314632405,-599.30729542,9.521e-05,2]
[405792859,1771314632415,-500.0,9.521e-05,2]
[405792860,1771314632426,-500.0,9.521e-05,2]
[405792861,1771314632437,-466.0,9.521e-05,2]
[405792862,1771314632447,-500.0,9.521e-05,2]
[405792863,1771314632457,-150.0,9.521e-05,2]
[405792864,1771314632468,-150.0,9.521e-05,2]
[405792865,1771314632482,-250.0,9.562e-05,2]
[405792866,1771314632492,-150.0,9.576e-05,2]
[405792867,1771314632504,-500.0,9.576e-05,2]
[405792868,1771314632514,-500.0,9.576e-05,2]
[405792869,1771314632525,-500.0,9.576e-05,2]
[405792870,1771314632535,-500.0,9.576e-05,2]
[405792871,1771314632545,-150.37957529,9.576e-05,2]
[405792872,1771314632556,-500.0,9.576e-05,2]
[405792873,1771314632566,-500.0,9.576e-05,2]
[405792874,1771314632577,-466.0,9.576e-05,2]
[405792875,1771314632587,-500.0,9.576e-05,2]
[405792876,1771314632598,-247.92,9.61e-05,2]
[405792877,1771314632609,-194.2424953,9.617e-05,2]
[405792878,1771314632619,-150.0,9.631e-05,2]
[405792879,1771314632629,-500.0,9.631e-05,2]
[405792880,1771314632639,-500.0,9.631e-05,2]
[405792881,1771314632650,-500.0,9.631e-05,2]
[405792882,1771314632661,-505.10095498,9.631e-05,2]
[405792883,1771314632671,-500.0,9.631e-05,2]
[405792884,1771314632685,-500.0,9.631e-05,2]
[405792885,1771314632696,-500.0,9.631e-05,2]
[405792886,1771314632706,-466.0,9.631e-05,2]
[405792887,1771314632716,-599.30729542,9.639e-05,2]
[405792888,1771314632726,-150.0,9.685e-05,2]
[405792889,1771314632737,-500.0,9.685e-05,2]
[405792890,1771314632748,-500.0,9.685e-05,2]
[405792891,1771314632758,-500.0,9.685e-05,2]
[405792892,1771314632768,-500.0,9.685e-05,2]
[405792893,1771314632778,-500.0,9.685e-05,2]
[405792894,1771314632788,-466.0,9.685e-05,2]
[405792895,1771314632799,-500.0,9.685e-05,2]
[405792896,1771314632808,-277.0,9.692e-05,2]
[405792897,1771314632818,-500.0,9.692e-05,2]
[405792898,1771314632828,-2500.0,9.696e-05,2]
[405792899,1771314632838,-500.0,9.712e-05,2]
[405792900,1771314632847,-150.0,9.712e-05,2]
[405792901,1771314632856,-933.51,9.713e-05,2]
[405792902,1771314632865,-413.0,9.718e-05,2]
[405792903,1771314632875,-300.0,9.719e-05,2]
[405792904,1771314632885,-150.0,9.719e-05,2]
[405792905,1771314632894,-500.0,9.72e-05,2]
[405792906,1771314632904,-500.0,9.72e-05,2]
[405792907,1771314632914,-872.0,9.72e-05,2]
[405792908,1771314632924,-4242.0,9.72e-05,2]
[405792909,1771314632933,-500.0,9.72e-05,2]
[405792910,1771314632945,-500.0,9.721e-05,2]
[405792911,1771314632955,-500.0,9.721e-05,2]
[405792912,1771314632969,-500.0,9.721e-05,2]
[405792913,1771314632979,-500.0,9.721e-05,2]
[405792914,1771314632991,-500.0,9.721e-05,2]
[405792915,1771314633001,-150.0,9.721e-05,2]
[405792916,1771314633011,-500.0,9.721e-05,2]
[405792917,1771314633021,-596.0,9.721e-05,2]
[405792918,1771314633031,-150.0,9.721e-05,2]
[405792919,1771314633041,-500.0,9.721e-05,2]
[405792920,1771314633051,-379.0,9.738e-05,2]
[405792921,1771314633063,-510.76125773,9.74e-05,2]
[405792922,1771314633087,-250.53819001,9.74e-05,2]
[405792923,1771314633098,-500.0,9.74e-05,2]
[405792924,1771314633110,-500.0,9.74e-05,2]
[405792925,1771314633121,-500.0,9.74e-05,2]
[405792926,1771314633133,-466.0,9.74e-05,2]
[405792927,1771314633144,-500.0,9.74e-05,2]
[405792928,1771314633155,-500.0,9.74e-05,2]
[405792929,1771314633165,-373.51940317,9.756e-05,2]
[405792930,1771314633176,-599.30729542,9.756e-05,2]
[405792931,1771314633187,-9999.99,9.757e-05,2]
[405792932,1771314633198,-2580.19,9.757e-05,2]
[405792933,1771314633208,-515.68,9.757e-05,2]
[405792934,1771314633218,-29124.47,9.757e-05,2]
[405792935,1771314633228,-999.99,9.757e-05,2]
[405792936,1771314633239,-9999.99,9.757e-05,2]
[405792937,1771314633251,-346.58,9.757e-05,2]
[405792938,1771314633261,-299.99,9.757e-05,2]
[405792939,1771314633271,-2106.28,9.757e-05,2]
[405792940,1771314633282,-150.99,9.757e-05,2]
[405792941,1771314633292,-150.99,9.757e-05,2]
[405792942,1771314633303,-83420.67,9.757e-05,2]
[405792943,1771314633315,-179.0,9.757e-05,2]
[405792944,1771314633325,-2009.09859743,9.757e-05,2]
[405792945,1771314633336,-586.0,9.762e-05,2]
[405792946,1771314633347,-500.0,9.767e-05,2]
[405792947,1771314633358,-151.2254874,9.767e-05,2]
[405792948,1771314633369,-500.0,9.775e-05,2]
[405792949,1771314633379,-500.0,9.775e-05,2]
[405792950,1771314633390,-872.0,9.775e-05,2]
[405792951,1771314633400,-4242.0,9.775e-05,2]
[405792952,1771314633411,-500.87477363,9.775e-05,2]
[405792953,1771314633421,-500.0,9.776e-05,2]
[405792954,1771314633431,-500.0,9.776e-05,2]
[405792955,1771314633442,-500.0,9.776e-05,2]
[405792956,1771314633452,-500.0,9.776e-05,2]
[405792957,1771314633462,-500.0,9.776e-05,2]
[405792958,1771314633473,-150.0,9.776e-05,2]
[405792959,1771314633483,-500.0,9.776e-05,2]
[405792960,1771314633494,-596.0,9.776e-05,2]
[405792961,1771314633506,-150.0,9.776e-05,2]
[405792962,1771314633516,-500.0,9.776e-05,2]
[405792963,1771314633527,-9999.99,9.776e-05,2]
[405792964,1771314633537,-261.0,9.777e-05,2]
[405792965,1771314633546,-1645.0,9.782e-05,2]
[405792966,1771314633557,-151.0,9.793e-05,2]
[405792967,1771314633567,-151.0,9.793e-05,2]
[405792968,1771314633578,-500.0,9.795e-05,2]
[405792969,1771314633588,-153.2248447,9.795e-05,2]
[405792970,1771314633602,-500.0,9.795e-05,2]
[405792971,1771314633612,-466.0,9.795e-05,2]
[405792972,1771314633623,-500.0,9.795e-05,2]
[405792973,1771314633634,-500.0,9.795e-05,2]
[405792974,1771314633644,-85988.75405358,9.796e-05,2]
[405792975,1771314634778,-10393.98042748,9.796e-05,2]
[405792976,1771314638396,-110758.52712505,9.796e-05,2]
[405792977,1771314638408,-1154.38291172,9.796e-05,2]
[405792978,1771314638443,-89524.96833229,9.796e-05,2]
[405792979,1771314638454,-337.00019524,9.796e-05,2]
[405792980,1771314638491,-1064.40417485,9.796e-05,2]
[405792981,1771314638541,-3200777.98277979,9.796e-05,2]
[405792982,1771314638551,-5519.99513017,9.809e-05,2]
[405792983,1771314638561,-1563.90389464,9.809e-05,2]
[405792984,1771314638571,-1852.42,9.809e-05,2]
[405792985,1771314638580,-500.0,9.821e-05,2]
[405792986,1771314638590,-237.28842339,9.821e-05,2]
[405792987,1771314638600,-500.0,9.821e-05,2]
[405792988,1771314638611,-500.0,9.821e-05,2]
[405792989,1771314638621,-500.0,9.821e-05,2]
[405792990,1771314638631,-500.0,9.822e-05,2]
[405792991,1771314638641,-500.0,9.83e-05,2]
[405792992,1771314638650,-500.0,9.83e-05,2]
[405792993,1771314638660,-872.0,9.83e-05,2]
[405792994,1771314638670,-4242.0,9.83e-05,2]
[405792995,1771314638680,-500.0,9.831e-05,2]
[405792997,1771314638690,-500.0,9.831e-05,2]
[405792998,1771314638700,-154.49885719,9.831e-05,2]
[405793000,1771314638710,-500.0,9.831e-05,2]
[405793003,1771314638720,-500.0,9.831e-05,2]
[405793004,1771314638730,-150.0,9.831e-05,2]
[405793005,1771314638740,-616.5683879,9.831e-05,2]
[405793007,1771314638749,-596.0,9.831e-05,2]
[405793009,1771314638759,-201.09695119,9.831e-05,2]
[405793010,1771314638768,-500.0,9.831e-05,2]
[405793011,1771314638779,-500.0,9.85e-05,2]
[405793012,1771314638789,-621.12228144,9.85e-05,2]
[405793013,1771314638799,-466.0,9.85e-05,2]
[405793014,1771314638808,-500.0,9.85e-05,2]
[405793015,1771314638819,-500.0,9.85e-05,2]
[405793016,1771314638829,-500.0,9.876e-05,2]
[405793017,1771314638839,-500.0,9.876e-05,2]
[405793018,1771314638848,-502.16866536,9.876e-05,2]
[405793019,1771314638858,-500.0,9.876e-05,2]
[405793020,1771314638869,-178.36591542,9.876e-05,2]
[405793021,1771314638878,-500.0,9.884e-05,2]
[405793022,1771314638887,-500.0,9.884e-05,2]
[405793024,1771314638896,-872.0,9.884e-05,2]
[405793025,1771314638906,-4242.0,9.884e-05,2]
[405793026,1771314638916,-500.0,9.885e-05,2]
[405793027,1771314638925,-187.36614029,9.885e-05,2]
[405793028,1771314638935,-500.0,9.885e-05,2]
[405793029,1771314638944,-150.0,9.885e-05,2]
[405793030,1771314638954,-500.0,9.885e-05,2]
[405793031,1771314638963,-596.0,9.885e-05,2]
[405793032,1771314638974,-500.0,9.885e-05,2]
[405793033,1771314638984,-3514.826,9.895e-05,2]
[405793034,1771314638994,-299.032,9.895e-05,2]
[405793035,1771314639004,-32850.4601,9.896e-05,2]
[405793036,1771314639014,-1000.0,9.896e-05,2]
[405793037,1771314639024,-10000.0,9.896e-05,2]
[405793038,1771314639034,-4587.476,9.896e-05,2]
[405793039,1771314639043,-6541.41246873,9.896e-05,2]
[405793040,1771314639053,-500.0,9.905e-05,2]
[405793041,1771314639065,-466.0,9.905e-05,2]
[405793042,1771314639075,-500.0,9.905e-05,2]
[405793043,1771314639085,-500.0,9.905e-05,2]
[405793044,1771314639095,-220.15883999,9.931e-05,2]
[405793045,1771314639106,-500.0,9.931e-05,2]
[405793046,1771314639116,-500.0,9.931e-05,2]
[405793047,1771314639126,-500.0,9.939e-05,2]
[405793048,1771314639137,-500.0,9.939e-05,2]
[405793049,1771314639147,-872.0,9.939e-05,2]
[405793050,1771314639156,-4242.0,9.939e-05,2]
[405793051,1771314639166,-500.0,9.94e-05,2]
[405793052,1771314639175,-500.0,9.94e-05,2]
[405793053,1771314639185,-150.0,9.94e-05,2]
[405793054,1771314639194,-500.0,9.94e-05,2]
[405793055,1771314639203,-596.0,9.94e-05,2]
[405793056,1771314639212,-500.0,9.94e-05,2]
[405793057,1771314639222,-500.0,9.959e-05,2]
[405793058,1771314639232,-466.0,9.959e-05,2]
[405793059,1771314639241,-500.0,9.959e-05,2]
[405793060,1771314639251,-500.0,9.959e-05,2]
[405793061,1771314639260,-500.0,9.985e-05,2]
[405793062,1771314639270,-500.0,9.985e-05,2]
[405793063,1771314639279,-500.0,9.994e-05,2]
[405793064,1771314639288,-500.0,9.994e-05,2]
[405793065,1771314639297,-872.0,9.994e-05,2]
[405793066,1771314639307,-4242.0,9.994e-05,2]
[405793067,1771314639317,-269.39,9.994e-05,2]
[405793068,1771314639326,-500.0,9.995e-05,2]
[405793069,1771314639336,-500.0,9.995e-05,2]
[405793070,1771314639345,-250.0,9.995e-05,2]
[405793071,1771314639354,-500.0,9.995e-05,2]
[405793072,1771314639363,-596.0,9.995e-05,2]
[405793073,1771314639372,-500.33776257,9.995e-05,2]
[405793074,1771314639382,-1068.04075167,9.996e-05,2]
[405793075,1771314639392,-1576.69293966,0.0001,2]
[405793076,1771314639402,-151.0,0.0001,2]
[405793077,1771314639411,-151.0,0.0001,2]
[405793078,1771314639420,-151.0,0.0001,2]
[405793079,1771314639430,-151.0,0.0001,2]
[405793080,1771314639439,-151.0,0.0001,2]
[405793081,1771314639449,-151.0,0.0001,2]
[405793082,1771314639458,-151.0,0.0001,2]
[405793083,1771314639468,-151.0,0.0001,2]
[405793084,1771314639477,-151.0,0.0001,2]
[405793085,1771314639487,-151.0,0.0001,2]
[405793086,1771314639496,-151.0,0.0001,2]
[405793087,1771314639506,-500.0,0.0001,2]
[405793088,1771314639515,-151.0,0.0001,2]
[405793089,1771314639525,-500.0,0.0001,2]
[405793090,1771314639535,-151.0,0.0001,2]
[405793091,1771314639544,-500.0,0.0001,2]
[405793092,1771314639554,-500.0,0.0001,2]
[405793093,1771314639564,-151.0,0.0001,2]
[405793094,1771314639573,-500.0,0.0001,2]
[405793095,1771314639583,-500.0,0.0001,2]
[405793096,1771314639593,-151.0,0.0001,2]
[405793097,1771314639603,-500.0,0.0001,2]
[405793098,1771314639612,-500.0,0.0001,2]
[405793099,1771314639622,-151.0,0.0001,2]
[405793100,1771314639632,-500.0,0.0001,2]
[405793101,1771314639642,-500.0,0.0001,2]
[405793102,1771314639652,-151.0,0.0001,2]
[405793103,1771314639662,-500.0,0.0001,2]
[405793104,1771314639671,-151.0,0.0001,2]
[405793105,1771314639680,-500.0,0.0001,2]
[405793106,1771314639690,-151.0,0.0001,2]
[405793107,1771314639699,-500.0,0.0001,2]
[405793108,1771314639708,-151.0,0.0001,2]
[405793109,1771314639718,-151.0,0.0001,2]
[405793110,1771314639727,-500.0,0.0001,2]
[405793111,1771314639736,-500.0,0.0001,2]
[405793112,1771314639746,-151.0,0.0001,2]
[405793113,1771314639755,-151.0,0.0001,2]
[405793114,1771314639765,-500.0,0.0001,2]
[405793115,1771314639774,-500.0,0.0001,2]
[405793116,1771314639783,-151.0,0.0001,2]
[405793117,1771314639793,-500.0,0.0001,2]
[405793118,1771314639803,-500.0,0.0001,2]
[405793119,1771314639812,-500.0,0.0001,2]
[405793120,1771314639821,-500.0,0.0001,2]
[405793121,1771314639830,-151.0,0.0001,2]
[405793122,1771314639839,-500.0,0.0001,2]
[405793123,1771314639848,-151.0,0.0001,2]
[405793124,1771314639857,-151.0,0.0001,2]
[405793125,1771314639867,-151.0,0.0001,2]
[405793126,1771314639876,-151.0,0.0001,2]
[405793127,1771314639885,-151.0,0.0001,2]
[405793128,1771314639895,-151.0,0.0001,2]
[405793129,1771314639903,-500.0,0.0001,2]
[405793130,1771314639913,-200.0,0.0001,2]
[405793131,1771314639922,-200.0,0.0001,2]
[405793132,1771314639931,-174.44086209,0.0001,2]
[405793133,1771314639942,-174.44086209,0.0001,2]
[405793134,1771314639951,-274.0,0.0001,2]
[405793135,1771314639960,-274.0,0.0001,2]
[405793136,1771314639970,-885.17558433,0.0001,2]
[405793137,1771314639979,-885.17558433,0.0001,2]
[405793138,1771314639988,-500.0,0.00010001,2]
[405793139,1771314639998,-500.0,0.00010014,2]
[405793140,1771314640008,-466.0,0.00010014,2]
[405793141,1771314640018,-500.0,0.00010014,2]
[405793142,1771314640028,-500.0,0.00010014,2]
[405793143,1771314640037,-500.0,0.0001004,2]
[405793144,1771314640047,-329.95129651,0.0001004,2]
[405793145,1771314640056,-500.0,0.00010049,2]
[405793146,1771314640069,-475.49905426,0.00010049,2]
[405793147,1771314640079,-872.0,0.00010049,2]
[405793148,1771314640089,-4242.0,0.00010049,2]
[405793149,1771314640099,-500.0,0.0001005,2]
[405793150,1771314640109,-500.0,0.0001005,2]
[405793151,1771314640120,-500.0,0.0001005,2]
[405793152,1771314640129,-596.0,0.0001005,2]
[405793153,1771314640141,-500.0,0.00010069,2]
[405793154,1771314640151,-466.0,0.00010069,2]
[405793155,1771314640161,-500.0,0.00010069,2]
[405793156,1771314640171,-500.0,0.00010069,2]
[405793157,1771314640180,-300.0,0.00010083,2]
[405793158,1771314640190,-500.0,0.00010095,2]
[405793159,1771314640199,-1242242.5097,0.00010096,2]
[405793160,1771314640210,-500.0,0.00010104,2]
[405793161,1771314640219,-872.0,0.00010104,2]
[405793162,1771314640229,-4242.0,0.00010104,2]
[405793163,1771314640238,-500.0,0.00010105,2]
[405793164,1771314640247,-500.0,0.00010105,2]
[405793165,1771314640257,-500.0,0.00010105,2]
[405793166,1771314640266,-596.0,0.00010105,2]
[405793167,1771314640276,-500.0,0.00010124,2]
[405793168,1771314640285,-466.0,0.00010124,2]
[405793169,1771314640295,-500.0,0.00010124,2]
[405793170,1771314640304,-500.0,0.00010124,2]
[405793171,1771314640314,-500.0,0.0001015,2]
[405793172,1771314640323,-500.0,0.00010158,2]
[405793173,1771314640332,-872.0,0.00010158,2]
[405793174,1771314640342,-4242.0,0.00010158,2]
[405793175,1771314640351,-500.0,0.00010159,2]
[405793176,1771314640360,-500.0,0.00010159,2]
[405793177,1771314640370,-500.0,0.00010159,2]
[405793179,1771314640379,-596.0,0.00010159,2]
[405793181,1771314640389,-200.0,0.00010165,2]
[405793182,1771314640398,-500.0,0.00010179,2]
[405793183,1771314640407,-466.0,0.00010179,2]
[405793184,1771314640417,-500.0,0.00010179,2]
[405793185,1771314640426,-500.0,0.00010179,2]
[405793186,1771314640435,-500.0,0.00010205,2]
[405793187,1771314640444,-500.0,0.00010213,2]
[405793188,1771314640454,-872.0,0.00010213,2]
[405793189,1771314640463,-4242.0,0.00010213,2]
[405793190,1771314640472,-155.81655615,0.00010214,2]
[405793191,1771314640482,-153.57378643,0.00010214,2]
[405793192,1771314640491,-500.0,0.00010214,2]
[405793193,1771314640501,-596.0,0.00010214,2]
[405793194,1771314640510,-276.85061866,0.0001023,2]
[405793195,1771314640519,-500.0,0.00010233,2]
[405793196,1771314640529,-466.0,0.00010233,2]
[405793197,1771314640538,-500.0,0.00010233,2]
[405793198,1771314640548,-391.49,0.00010248,2]
[405793199,1771314640558,-500.0,0.00010259,2]
[405793200,1771314640567,-500.0,0.00010268,2]
[405793201,1771314640577,-872.0,0.00010268,2]
[405793202,1771314640586,-4242.0,0.00010268,2]
[405793203,1771314640596,-269.39,0.00010268,2]
[405793204,1771314640606,-500.0,0.00010269,2]
[405793205,1771314640616,-596.0,0.00010269,2]
[405793206,1771314640625,-500.0,0.00010288,2]
[405793207,1771314640635,-466.0,0.00010288,2]
[405793208,1771314640644,-500.0,0.00010288,2]
[405793209,1771314640654,-412.20018063,0.00010314,2]
[405793210,1771314640663,-500.0,0.00010323,2]
[405793211,1771314640673,-872.0,0.00010323,2]
[405793212,1771314640683,-4242.0,0.00010323,2]
[405793213,1771314640693,-500.0,0.00010324,2]
[405793214,1771314640702,-596.0,0.00010324,2]
[405793215,1771314640712,-266.33885806,0.00010343,2]
[405793216,1771314640721,-466.0,0.00010343,2]
[405793217,1771314640730,-500.0,0.00010343,2]
[405793218,1771314640740,-500.0,0.00010378,2]
[405793219,1771314640750,-872.0,0.00010378,2]
[405793220,1771314640759,-4242.0,0.00010378,2]
[405793221,1771314640770,-500.0,0.00010379,2]
[405793222,1771314640780,-596.0,0.00010379,2]
[405793223,1771314640790,-466.0,0.00010398,2]
[405793224,1771314640799,-500.0,0.00010398,2]
[405793225,1771314640809,-500.0,0.00010432,2]
[405793226,1771314640818,-872.0,0.00010432,2]
[405793227,1771314640827,-4242.0,0.00010432,2]
[405793228,1771314641094,-500.0,0.00010433,2]
[405793229,1771314641104,-596.0,0.00010433,2]
[405793230,1771314641114,-466.0,0.00010453,2]
[405793231,1771314641123,-500.0,0.00010453,2]
[405793232,1771314641133,-1680.0,0.00010472,2]
[405793233,1771314641144,-500.0,0.00010487,2]
[405793234,1771314641153,-872.0,0.00010487,2]
[405793235,1771314641164,-4242.0,0.00010487,2]
[405793236,1771314641173,-611.76249723,0.00010488,2]
[405793237,1771314641183,-596.0,0.00010488,2]
[405793238,1771314641192,-250.0,0.00010491,2]
[405793239,1771314641201,-250.0,0.00010492,2]
[405793240,1771314641211,-466.0,0.00010507,2]
[405793241,1771314641220,-481.0942881,0.00010507,2]
[405793242,1771314641229,-248219.29449566,0.0001051,2]
[405793243,1771314641239,-500.0,0.00010542,2]
[405793244,1771314641248,-872.0,0.00010542,2]
[405793245,1771314641258,-4242.0,0.00010542,2]
[405793246,1771314641267,-269.39,0.00010542,2]
[405793247,1771314641277,-596.0,0.00010543,2]
[405793248,1771314641286,-500.0,0.00010548,2]
[405793249,1771314641295,-200.0,0.00010548,2]
[405793250,1771314641304,-200.0,0.00010548,2]
[405793251,1771314641313,-466.0,0.00010562,2]
[405793252,1771314641322,-500.0,0.00010597,2]
[405793253,1771314641331,-872.0,0.00010597,2]
[405793254,1771314641340,-4242.0,0.00010597,2]
[405793255,1771314641349,-596.0,0.00010598,2]
[405793256,1771314641359,-466.0,0.00010617,2]
[405793257,1771314641368,-500.0,0.00010652,2]
[405793258,1771314641377,-872.0,0.00010652,2]
[405793259,1771314641386,-4242.0,0.00010652,2]
[405793260,1771314641396,-596.0,0.00010653,2]
[405793261,1771314641405,-466.0,0.00010672,2]
[405793262,1771314641414,-420.0,0.00010691,2]
[405793263,1771314641423,-255.0,0.00010691,2]
[405793264,1771314641432,-500.0,0.00010706,2]
[405793265,1771314641442,-872.0,0.00010706,2]
[405793266,1771314641451,-4242.0,0.00010706,2]
[405793267,1771314641461,-596.0,0.00010707,2]
[405793268,1771314641470,-466.0,0.00010726,2]
[405793269,1771314641479,-500.0,0.00010761,2]
[405793270,1771314641488,-872.0,0.00010761,2]
[405793271,1771314641497,-4242.0,0.00010761,2]
[405793272,1771314641507,-596.0,0.00010762,2]
[405793273,1771314641516,-500.0,0.00010779,2]
[405793274,1771314641525,-164.61380668,0.00010779,2]
[405793275,1771314641535,-500.0,0.00010779,2]
[405793276,1771314641544,-226.12222085,0.00010779,2]
[405793277,1771314641553,-500.81972658,0.00010779,2]
[405793278,1771314641562,-160.37289206,0.00010779,2]
[405793279,1771314641572,-500.0,0.00010779,2]
[405793280,1771314641581,-500.0,0.00010779,2]
[405793281,1771314641591,-503.06752739,0.00010779,2]
[405793282,1771314641601,-502.12798245,0.00010779,2]
[405793283,1771314641610,-500.32111708,0.00010779,2]
[405793284,1771314641620,-500.0,0.00010779,2]
[405793285,1771314641629,-500.0,0.00010779,2]
[405793286,1771314641638,-500.86147052,0.00010779,2]
[405793287,1771314641647,-501.16029055,0.00010779,2]